bitfinex/quotes_SOLUSD_20240821
["timestamp","ask_amount","ask_price","bid_price","bid_amount"]
[1724206600027,13.18,143.0,142.94,6.31075666]
[1724206600347,13.18,143.0,142.95,6.31075666]
[1724206600553,13.18,143.0,142.93,10.35989162]
[1724206600850,13.18,143.0,142.94,6.31075708]
[1724206601055,13.18,143.0,142.95,6.31075708]
[1724206601236,13.18,143.0,142.92,10.35989692]
[1724206601434,13.18,143.0,142.93,16.67065575]
[1724206601652,13.18,143.0,142.94,16.67065575]
[1724206601831,13.18,143.0,142.95,6.31075883]
[1724206602030,13.18,143.0,142.93,10.35989692]
[1724206602248,13.18,143.0,142.94,16.6702951]
[1724206602474,13.18,143.0,142.95,6.31039818]
[1724206602653,16.2641,143.02,142.96,1.39897152]
[1724206602825,16.2641,143.02,142.97,6.30775837]
[1724206603030,16.2641,143.02,142.98,7.7052915]
[1724206603256,16.2641,143.02,142.98,1.39854794]
[1724206603557,16.2641,143.02,142.96,10.35989692]
[1724206603762,16.2641,143.02,142.97,6.30643083]
[1724206603933,16.2641,143.02,142.98,6.30643083]
[1724206604133,16.2641,143.02,142.96,10.35989692]
[1724206604349,16.2641,143.02,142.97,6.30635534]
[1724206604566,29.4441,143.02,142.95,13.18]
[1724206604723,29.4441,143.02,142.96,16.65905152]
[1724206604969,29.4441,143.02,142.95,13.18]
[1724206605130,29.4441,143.02,142.96,16.66020686]
[1724206605350,29.4441,143.02,142.97,6.30680113]
[1724206605563,29.4441,143.02,142.97,1.39865042]
[1724206606753,16.2641,143.02,142.96,11.75201794]
[1724206606963,16.2641,143.02,142.97,6.30141558]
[1724206607258,29.1054,143.05,142.98,7.6989111]
[1724206607489,29.1054,143.05,142.97,10.35340573]
[1724206607490,29.1054,143.05,142.99,7.69891288]
[1724206607763,29.1054,143.05,142.99,1.39847547]
[1724206607764,15.9254,143.05,142.99,1.39847547]
[1724206608071,13.18,143.04,142.99,1.39847547]
[1724206608439,13.18,143.04,142.98,1.39843243]
[1724206608760,13.18,143.04,142.99,7.69763485]
[1724206608945,13.18,143.04,142.99,1.3984548]
[1724206609359,13.18,143.04,142.99,7.69763485]
[1724206609563,13.18,143.04,142.97,6.29711954]
[1724206609735,13.18,143.04,142.98,6.29711954]
[1724206610062,13.18,143.04,142.99,1.39762575]
[1724206610429,13.18,143.04,142.98,6.29656216]
[1724206610628,13.18,143.04,142.97,6.29656216]
[1724206610832,13.18,143.04,142.95,39.02749722]
[1724206611062,13.18,143.04,142.96,51.54755187]
[1724206611269,13.18,143.04,142.97,6.29657187]
[1724206611470,13.18,143.04,142.96,55.59187722]
[1724206611761,13.18,143.04,142.97,6.29670115]
[1724206611939,13.18,143.04,142.98,6.29670115]
[1724206612145,13.18,143.04,142.97,6.29670115]
[1724206612339,13.18,143.04,142.98,6.29449575]
[1724206612544,13.18,143.04,142.96,55.58418695]
[1724206612545,15.9254,143.05,142.97,19.47449575]
[1724206612850,29.1054,143.05,142.98,6.29449575]
[1724206613359,19.672,143.07,142.99,6.29449575]
[1724206613659,19.672,143.07,142.99,13.18]
[1724206613879,19.672,143.07,143.0,1.39614358]
[1724206614086,19.672,143.07,142.99,13.18]
[1724206614269,19.672,143.07,142.99,19.47449575]
[1724206614586,19.672,143.07,142.99,13.18]
[1724206614782,19.672,143.07,142.99,19.47449575]
[1724206614991,19.672,143.07,142.99,13.18]
[1724206616189,19.672,143.07,142.99,19.47449575]
[1724206616387,19.672,143.07,142.99,13.18]
[1724206616765,13.18,143.06,143.0,45.0]
[1724206620168,6.492,143.07,142.99,13.18]
[1724206620375,19.672,143.07,142.99,13.18]
[1724206620671,6.492,143.07,143.0,45.0]
[1724206621068,19.672,143.07,143.0,45.0]
[1724206621391,6.492,143.07,143.0,45.0]
[1724206621704,19.672,143.07,143.0,45.0]
[1724206622376,13.18,143.05,142.97,19.5549]
[1724206622577,13.18,143.05,142.98,45.0]
[1724206623070,19.672,143.07,142.99,14.8293031]
[1724206623393,19.672,143.07,143.0,45.0]
[1724206623704,19.672,143.07,143.01,1.39812754]
[1724206623898,19.672,143.07,143.02,1.39802978]
[1724206624196,19.672,143.07,143.0,45.0]
[1724206628082,19.672,143.07,143.01,1.39813355]
[1724206628281,6.492,143.07,143.0,45.0]
[1724206628592,16.3291,143.08,143.03,13.18]
[1724206629681,16.3291,143.08,143.01,13.30549]
[1724206629880,16.3291,143.08,143.02,45.0]
[1724206634006,16.3291,143.08,143.01,13.18]
[1724206634179,29.5091,143.08,143.01,13.18]
[1724206634887,16.3291,143.08,143.01,13.18]
[1724206635209,16.3291,143.08,143.02,45.0]
[1724206635902,16.3291,143.08,143.01,13.18]
[1724206646489,19.6296,143.07,142.98,6.28461363]
[1724206646689,19.6296,143.07,142.99,58.18]
[1724206648420,19.6296,143.07,142.99,45.0]
[1724206648421,13.18,143.05,142.99,45.0]
[1724206648710,13.18,143.05,142.98,45.0]
[1724206649290,15.8903,143.04,142.98,45.0]
[1724206649493,15.8903,143.04,142.97,13.18]
[1724206650522,15.8903,143.04,142.96,6.28930536]
[1724206650722,15.8903,143.04,142.97,58.18]
[1724206651225,15.8903,143.04,142.98,1.39846853]
[1724206651395,15.8903,143.04,142.99,1.39835947]
[1724206651598,15.8903,143.04,142.97,58.18]
[1724206656121,15.8903,143.04,142.98,1.39841641]
[1724206656326,15.8903,143.04,142.99,1.39835101]
[1724206656507,15.8903,143.04,142.97,58.18]
[1724206658829,15.8903,143.04,142.97,45.0]
[1724206659002,15.8903,143.04,142.96,45.0]
[1724206659337,6.6202,143.03,142.96,45.0]
[1724206659508,19.8002,143.03,142.96,45.0]
[1724206660032,6.6202,143.03,142.96,45.0]
[1724206661002,6.6202,143.03,142.97,14.57850074]
[1724206663025,6.6202,143.03,142.97,13.18]
[1724206664123,6.6202,143.03,142.98,1.39842078]
[1724206665108,6.6202,143.03,142.99,1.39848137]
[1724206665437,6.6202,143.03,142.97,13.18]
[1724206666434,6.6202,143.03,142.96,45.12549]
[1724206667945,13.18,143.02,142.96,45.0]
[1724206668108,13.18,143.02,142.95,45.0]
[1724206669316,13.18,143.02,142.94,13.18]
[1724206669937,13.18,143.02,142.95,46.39868137]
[1724206670146,13.18,143.02,142.96,1.39861876]
[1724206670640,13.18,143.02,142.95,45.0]
[1724206672241,13.18,143.02,142.96,1.39862305]
[1724206673144,13.18,143.02,142.95,45.0]
[1724206673941,13.18,143.02,142.94,13.18]
[1724206674848,16.4687,143.01,142.94,13.18]
[1724206675146,16.4687,143.01,142.95,1.39877038]
[1724206675644,16.4687,143.01,142.94,13.18]
[1724206676557,16.4687,143.01,142.95,1.39876611]
[1724206676844,16.4687,143.01,142.96,1.3986832]
[1724206677751,16.4687,143.01,142.95,1.39870773]
[1724206677920,16.4687,143.01,142.96,1.39870773]
[1724206678949,16.4687,143.01,142.95,1.39866914]
[1724206679244,16.4687,143.01,142.96,1.39869181]
[1724206680450,16.4687,143.01,142.94,13.18]
[1724206682331,16.4687,143.01,142.95,45.25098]
[1724206683236,16.4687,143.01,142.95,45.0]
[1724206683551,16.4687,143.01,142.94,13.18]
[1724206684126,16.4687,143.01,142.95,1.39871292]
[1724206684349,16.4687,143.01,142.94,13.18]
[1724206685668,16.4687,143.01,142.95,1.39871326]
[1724206685854,16.4687,143.01,142.94,13.18]
[1724206687035,16.4687,143.01,142.95,1.39871221]
[1724206687233,16.4687,143.01,142.96,1.39871262]
[1724206687761,16.4687,143.01,142.95,45.0]
[1724206688149,16.4687,143.01,142.94,13.30549]
[1724206689461,16.4687,143.01,142.94,13.18]
[1724206689462,29.6487,143.01,142.94,13.18]
[1724206692162,29.6487,143.01,142.91,6.30433849]
[1724206692363,29.6487,143.01,142.91,19.48433849]
[1724206692364,19.4434,142.99,142.91,19.48433849]
[1724206692546,19.4434,142.99,142.91,13.18]
[1724206693865,19.4434,142.99,142.92,45.0]
[1724206698774,19.4434,142.99,142.9,14.1637037]
[1724206698948,19.4434,142.99,142.91,45.0]
[1724206710672,28.2661,142.97,142.9,0.8582137]
[1724206711379,15.0861,142.97,142.9,0.8582137]
[1724206711550,28.2661,142.97,142.9,0.8582137]
[1724206726804,13.584852,142.99,142.9,0.8582137]
[1724206726805,13.18,142.95,142.9,0.8582137]
[1724206726977,15.9506,142.94,142.9,0.8582137]
[1724206736606,6.2292,142.96,142.9,15.43740022]
[1724206739509,6.2292,142.96,142.9,14.0382137]
[1724206739814,6.2292,142.96,142.91,1.39820388]
[1724206740517,6.2292,142.96,142.91,45.0]
[1724206742805,6.2292,142.96,142.9,0.8582137]
[1724206743001,19.4092,142.96,142.9,0.8582137]
[1724206743713,6.2292,142.96,142.9,0.8582137]
[1724206743917,19.4092,142.96,142.9,0.8582137]
[1724206744602,6.2292,142.96,142.9,2.2566288]
[1724206744803,6.2292,142.96,142.9,0.8582137]
[1724206748418,6.2292,142.96,142.9,7.17903526]
[1724206748721,6.2292,142.96,142.9,0.8582137]
[1724206749304,6.2292,142.96,142.9,7.18005545]
[1724206749635,6.2292,142.96,142.9,7.1801554]
[1724206750809,6.2292,142.96,142.9,0.8582137]
[1724206754019,6.2292,142.96,142.91,1.39922913]
[1724206757032,16.3109,142.97,142.92,13.18]
[1724206757232,16.3109,142.97,142.93,1.39892642]
[1724206759905,16.3109,142.97,142.92,13.18]
[1724206762212,16.3109,142.97,142.92,19.48741788]
[1724206762429,16.3109,142.97,142.92,13.18]
[1724206763516,16.3109,142.97,142.9,24.54583917]
[1724206763838,16.3109,142.97,142.91,51.5569087]
[1724206764021,16.3109,142.97,142.91,45.25098]
[1724206764616,16.3109,142.97,142.91,45.12549]
[1724206765115,16.3109,142.97,142.91,45.0]
[1724206766148,16.3109,142.97,142.9,24.39115787]
[1724206766316,16.3109,142.97,142.91,6.30556618]
[1724206766616,16.3109,142.97,142.9,14.0382137]
[1724206766822,16.3109,142.97,142.91,6.30515075]
[1724206767011,16.3109,142.97,142.9,14.0382137]
[1724206767210,16.3109,142.97,142.91,7.70224659]
[1724206773541,16.3109,142.97,142.91,7.70038263]
[1724206773840,16.3109,142.97,142.91,1.39913853]
[1724206776425,16.3109,142.97,142.9,20.3394578]
[1724206777238,16.3109,142.97,142.9,0.8582137]
[1724206777433,16.3109,142.97,142.9,52.1594578]
[1724206777653,16.3109,142.97,142.9,45.8582137]
[1724206777941,16.3109,142.97,142.9,0.8582137]
[1724206778134,16.3109,142.97,142.9,7.16001332]
[1724206780356,16.3109,142.97,142.9,0.8582137]
[1724206781252,16.3109,142.97,142.9,14.0382137]
[1724206781954,16.3109,142.97,142.91,45.0]
[1724206782143,16.3109,142.97,142.91,13.18]
[1724206782347,16.3109,142.97,142.92,45.0]
[1724206783157,16.3109,142.97,142.93,1.39900581]
[1724206783536,16.3109,142.97,142.92,45.0]
[1724206786858,16.3109,142.97,142.91,13.18]
[1724206787055,16.3109,142.97,142.9,0.8582137]
[1724206787234,16.3109,142.97,142.9,14.0382137]
[1724206789245,6.2603,142.96,142.9,14.0382137]
[1724206790059,6.2603,142.96,142.9,0.8582137]
[1724206790856,19.4403,142.96,142.9,0.8582137]
[1724206792558,15.6712,142.95,142.9,0.8582137]
[1724206802236,15.6712,142.95,142.9,2.25760788]
[1724206802443,15.6712,142.95,142.9,47.25760788]
[1724206802865,15.6712,142.95,142.9,45.8582137]
[1724206803452,15.1968,142.98,142.91,13.18]
[1724206804544,15.1968,142.98,142.92,0.78133818]
[1724206804745,15.1968,142.98,142.91,13.18]
[1724206804967,15.1968,142.98,142.92,1.39908808]
[1724206805571,15.1968,142.98,142.91,13.18]
[1724206808274,28.3768,142.98,142.91,13.18]
[1724206809267,15.1968,142.98,142.92,45.0]
[1724206809474,15.1968,142.98,142.93,1.3980402]
[1724206810143,15.1968,142.98,142.92,45.0]
[1724206812469,28.3768,142.98,142.91,13.18]
[1724206812770,28.3768,142.98,142.9,0.9837037]
[1724206812973,28.3768,142.98,142.9,45.9837037]
[1724206813278,28.3768,142.98,142.9,45.8582137]
[1724206814559,28.3768,142.98,142.91,1.32821667]
[1724206814855,28.3768,142.98,142.9,45.8582137]
[1724206815390,28.3768,142.98,142.91,1.32729333]
[1724206815770,28.3768,142.98,142.91,13.18]
[1724206816878,28.3768,142.98,142.9,59.1637037]
[1724206817085,28.3768,142.98,142.91,0.12549]
[1724206818553,28.3768,142.98,142.9,59.0382137]
[1724206818963,28.3768,142.98,142.91,6.28750411]
[1724206819875,28.3768,142.98,142.9,59.0382137]
[1724206820256,28.3768,142.98,142.91,6.28775707]
[1724206823453,28.3768,142.98,142.9,59.0382137]
[1724206825584,28.3768,142.98,142.91,1.39908726]
[1724206826212,15.1968,142.98,142.92,13.18]
[1724206826505,6.0001,143.0,142.94,13.18]
[1724206826801,15.5472,143.01,142.96,13.18]
[1724206827616,15.5472,143.01,142.93,13.30549]
[1724206827906,15.5472,143.01,142.94,45.12549]
[1724206834480,15.5472,143.01,142.94,45.0]
[1724206834688,28.7272,143.01,142.94,45.0]
[1724206835910,15.5472,143.01,142.95,13.18]
[1724206836110,15.5472,143.01,142.96,45.0]
[1724206836294,15.5472,143.01,142.96,46.39857306]
[1724206836818,15.5472,143.01,142.96,45.0]
[1724206848025,15.5472,143.01,142.95,13.18]
[1724206848336,15.5472,143.01,142.93,13.18]
[1724206848499,15.5472,143.01,142.94,45.0]
[1724206856035,15.5472,143.01,142.95,13.18]
[1724206861514,15.5472,143.01,142.94,45.0]
[1724206861714,15.5472,143.01,142.92,0.12549]
[1724206861916,15.5472,143.01,142.92,13.18]
[1724206862230,6.1289,143.0,142.93,45.0]
[1724206863320,6.1289,143.0,142.94,1.39890232]
[1724206863513,6.1289,143.0,142.94,14.57890232]
[1724206864233,6.1289,143.0,142.94,13.18]
[1724206868234,6.1289,143.0,142.94,19.45768019]
[1724206868832,6.1289,143.0,142.94,13.18]
[1724206869215,6.1289,143.0,142.94,19.45791445]
[1724206869911,6.1289,143.0,142.95,45.0]
[1724206871028,15.5472,143.01,142.96,13.18]
[1724206871337,19.3911,143.04,142.97,45.0]
[1724206873140,6.2111,143.04,142.98,14.70399828]
[1724206873341,6.2111,143.04,142.99,46.52374244]
[1724206873839,6.2111,143.04,142.99,45.12549]
[1724206874018,6.2111,143.04,142.99,45.0]
[1724206878841,6.2111,143.04,142.98,13.18]
[1724206885023,6.2111,143.04,142.94,15.8465]
[1724206885024,13.18,143.03,142.94,6.27339911]
[1724206885235,13.18,143.03,142.93,6.27339911]
[1724206885543,13.18,143.03,142.9,22.6254137]
[1724206885544,13.18,143.03,142.95,13.18]
[1724206886949,6.2111,143.04,142.97,13.18]
[1724206887137,6.2111,143.04,142.98,1.39854145]
[1724206890574,15.6144,143.05,142.99,14.5784908]
[1724206896356,15.6144,143.05,142.99,13.18]
[1724206909886,15.6144,143.05,143.0,1.3983591]
[1724206910056,15.6144,143.05,142.99,13.30549]
[1724206910382,15.6144,143.05,143.0,45.12549]
[1724206913568,15.6144,143.05,142.99,13.18]
[1724206924477,15.6144,143.05,142.96,10.31499113]
[1724206924792,6.4063,143.04,142.97,64.58612698]
[1724206924985,6.4063,143.04,142.97,58.30549]
[1724206925188,16.4037,143.03,142.96,10.31499113]
[1724206925402,13.18,143.02,142.94,13.18]
[1724206925696,16.4037,143.03,142.96,13.18]
[1724206927106,16.4037,143.03,142.96,14.57800501]
[1724206927413,16.4037,143.03,142.96,13.18]
[1724206932604,13.18,143.02,142.94,19.46431473]
[1724206932860,13.18,143.02,142.95,6.28431473]
[1724206934404,13.18,143.02,142.94,13.18]
[1724206934584,13.18,143.02,142.94,19.46431473]
[1724206934795,13.18,143.02,142.94,13.18]
[1724206935012,13.18,143.02,142.94,19.46431473]
[1724206935339,13.18,143.02,142.94,13.18]
[1724206935610,13.18,143.02,142.94,19.46431473]
[1724206935816,13.18,143.02,142.94,13.18]
[1724206936018,13.18,143.02,142.94,19.46586436]
[1724206936181,13.18,143.02,142.94,13.18]
[1724206936514,13.18,143.02,142.94,19.46586436]
[1724206936717,13.18,143.02,142.94,13.18]
[1724206943032,13.18,143.02,142.95,1.39884251]
[1724206946233,13.18,143.02,142.94,13.18]
[1724206948336,13.18,143.02,142.95,1.39884618]
[1724206950409,13.18,143.02,142.94,13.18]
[1724206952838,22.7525,143.01,142.93,1.39882941]
[1724206953039,33.18,143.0,142.92,19.47113939]
[1724206954035,20.0,143.0,142.92,13.18]
[1724206954220,20.0,143.0,142.92,19.47439423]
[1724206954414,22.7525,143.01,142.94,13.18]
[1724206954737,22.7525,143.01,142.95,1.39882791]
[1724206957534,22.7525,143.01,142.95,46.39882791]
[1724206958617,22.7525,143.01,142.95,45.0]
[1724206960527,22.7525,143.01,142.93,13.18]
[1724206960732,22.7525,143.01,142.94,45.0]
[1724206962648,13.18,143.0,142.92,23.51900707]
[1724206962826,13.18,143.0,142.93,51.29663072]
[1724206963026,13.18,143.0,142.93,45.0]
[1724206963261,13.18,143.0,142.91,13.18]
[1724206963444,13.18,143.0,142.92,6.29681342]
[1724206963754,13.18,143.0,142.93,6.29681342]
[1724206963938,13.18,143.0,142.91,23.51687595]
[1724206964127,13.18,143.0,142.92,6.29671773]
[1724206964443,13.18,143.0,142.93,6.29671773]
[1724206964658,13.18,143.0,142.94,6.29671773]
[1724206964837,13.18,143.0,142.92,6.29671773]
[1724206965039,13.18,143.0,142.93,51.29671773]
[1724206965237,13.18,143.0,142.94,6.29671773]
[1724206965452,13.18,143.0,142.93,6.29671773]
[1724206965646,13.18,143.0,142.92,45.12549]
[1724206965852,13.18,143.0,142.93,6.2974874]
[1724206966056,13.18,143.0,142.94,6.29748354]
[1724206966248,13.18,143.0,142.92,55.46236595]
[1724206966249,13.18,143.0,142.93,6.29748354]
[1724206966449,13.18,143.0,142.94,6.29748354]
[1724206966651,13.18,143.0,142.93,6.29748354]
[1724206966958,13.18,143.0,142.94,6.29748354]
[1724206967253,13.18,143.0,142.93,6.292897]
[1724206967555,13.18,143.0,142.92,45.12549]
[1724206967744,13.18,143.0,142.93,6.29275761]
[1724206967946,13.18,143.0,142.92,45.12549]
[1724206968257,13.18,143.0,142.93,6.2933963]
[1724206968460,13.18,143.0,142.92,58.18]
[1724206968646,13.18,143.0,142.93,6.29337442]
[1724206968961,13.18,143.0,142.94,6.29337442]
[1724206969158,13.18,143.0,142.93,6.29337442]
[1724206969460,13.18,143.0,142.94,6.29337442]
[1724206969644,13.18,143.0,142.92,68.51057667]
[1724206969956,13.18,143.0,142.93,6.29364973]
[1724206970155,13.18,143.0,142.94,6.29364973]
[1724206970381,13.18,143.0,142.93,10.33057667]
[1724206970561,13.18,143.0,142.94,6.29364192]
[1724206970738,13.18,143.0,142.93,10.33057667]
[1724206970945,13.18,143.0,142.92,58.18]
[1724206971135,13.18,143.0,142.93,16.62407221]
[1724206971358,13.18,143.0,142.92,58.18]
[1724206971637,13.18,143.0,142.93,16.620928]
[1724206971837,13.18,143.0,142.94,6.29193332]
[1724206972046,13.18,143.0,142.93,11.72803122]
[1724206972244,13.18,143.0,142.94,6.29213686]
[1724206972438,13.18,143.0,142.93,11.72803122]
[1724206972650,13.18,143.0,142.94,6.29220444]
[1724206972840,13.18,143.0,142.93,10.32899468]
[1724206973041,13.18,143.0,142.94,6.29220339]
[1724206973344,13.18,143.0,142.93,10.32899468]
[1724206973544,35.9325,143.01,142.94,6.29220444]
[1724206973743,35.9325,143.01,142.93,10.32899468]
[1724206973944,35.9325,143.01,142.94,6.29192404]
[1724206974231,35.9325,143.01,142.93,10.32899468]
[1724206974531,35.9325,143.01,142.94,6.29247063]
[1724206974735,35.9325,143.01,142.92,55.32899468]
[1724206974953,35.9325,143.01,142.93,6.29410531]
[1724206975143,35.9325,143.01,142.94,6.29410531]
[1724206975463,35.9325,143.01,142.92,68.51255943]
[1724206975669,35.9325,143.01,142.93,6.29428025]
[1724206975840,35.9325,143.01,142.94,6.29428025]
[1724206976040,35.9325,143.01,142.92,68.51255943]
[1724206976378,35.9325,143.01,142.93,6.29453173]
[1724206976667,35.9325,143.01,142.94,6.29453173]
[1724206976873,35.9325,143.01,142.92,68.51255943]
[1724206977043,35.9325,143.01,142.93,6.29459534]
[1724206977240,35.9325,143.01,142.92,68.51255943]
[1724206977241,35.9325,143.01,142.94,6.29459534]
[1724206977443,35.9325,143.01,142.92,68.51255943]
[1724206977672,35.9325,143.01,142.93,6.29627273]
[1724206977850,35.9325,143.01,142.94,6.29627273]
[1724206978037,35.9325,143.01,142.92,68.51255943]
[1724206978237,35.9325,143.01,142.93,6.29673659]
[1724206978444,35.9325,143.01,142.94,6.29673659]
[1724206978661,35.9325,143.01,142.92,68.51255943]
[1724206978863,35.9325,143.01,142.93,6.29701525]
[1724206979057,35.9325,143.01,142.94,6.29701525]
[1724206979254,35.9325,143.01,142.92,68.51733653]
[1724206979466,13.18,142.99,142.93,6.29701381]
[1724206979646,16.0079,142.98,142.94,6.29701381]
[1724206979972,16.0079,142.98,142.92,10.3373312]
[1724206980137,16.0079,142.98,142.93,6.29714573]
[1724206980336,16.0079,142.98,142.94,6.29714573]
[1724206980549,16.0079,142.98,142.93,10.33658426]
[1724206980747,16.0079,142.98,142.94,6.29656185]
[1724206980953,16.0079,142.98,142.92,10.33658426]
[1724206981155,16.0079,142.98,142.93,6.2965727]
[1724206981400,16.0079,142.98,142.9,27.15646845]
[1724206981401,16.0079,142.98,142.92,13.18]
[1724206981542,16.0079,142.98,142.94,6.29656613]
[1724206981738,16.0079,142.98,142.93,10.33658257]
[1724206981944,16.0079,142.98,142.94,6.29655984]
[1724206982263,16.0079,142.98,142.93,10.33658257]
[1724206982454,16.0079,142.98,142.94,6.29649067]
[1724206982655,16.0079,142.98,142.93,10.33658257]
[1724206982964,16.0079,142.98,142.94,6.29648962]
[1724206983169,16.0079,142.98,142.93,10.33658257]
[1724206983362,16.0079,142.98,142.94,6.29656089]
[1724206983562,16.0079,142.98,142.93,10.33658257]
[1724206983748,16.0079,142.98,142.94,6.29656089]
[1724206983948,16.0079,142.98,142.93,10.33658257]
[1724206984148,16.0079,142.98,142.94,6.29662803]
[1724206984362,16.0079,142.98,142.93,10.33658257]
[1724206984556,16.0079,142.98,142.94,6.29494823]
[1724206984758,16.0079,142.98,142.93,10.33658257]
[1724206984970,16.0079,142.98,142.94,6.29442558]
[1724206985172,16.0079,142.98,142.92,13.18]
[1724206985469,16.0079,142.98,142.93,6.2941112]
[1724206985644,16.0079,142.98,142.92,13.18]
[1724206985645,16.0079,142.98,142.94,6.2941112]
[1724206985846,16.0079,142.98,142.92,13.18]
[1724206986045,16.0079,142.98,142.93,6.29412866]
[1724206986352,16.0079,142.98,142.94,6.29412866]
[1724206986560,16.0079,142.98,142.92,10.33258963]
[1724206986783,16.0079,142.98,142.93,6.29423525]
[1724206986951,16.0079,142.98,142.94,6.29423525]
[1724206987144,16.0079,142.98,142.91,10.33258963]
[1724206987347,16.0079,142.98,142.92,16.62682979]
[1724206987646,16.0079,142.98,142.93,6.29424016]
[1724206987865,16.0079,142.98,142.94,6.29424016]
[1724206988065,16.0079,142.98,142.92,10.33258963]
[1724206988066,16.0079,142.98,142.91,10.33258963]
[1724206988258,16.0079,142.98,142.92,16.62782849]
[1724206988569,16.0079,142.98,142.93,6.29523886]
[1724206988761,16.0079,142.98,142.94,6.29523886]
[1724206988961,16.0079,142.98,142.92,10.33474292]
[1724206989151,16.0079,142.98,142.91,45.0]
[1724206989349,16.0079,142.98,142.92,16.63019645]
[1724206989560,16.0079,142.98,142.93,6.29543915]
[1724206989876,16.0079,142.98,142.94,6.29543915]
[1724206990048,16.0079,142.98,142.92,10.3347573]
[1724206990249,16.0079,142.98,142.93,6.2955233]
[1724206990446,16.0079,142.98,142.94,6.2955233]
[1724206990649,16.0079,142.98,142.92,10.3347573]
[1724206990864,16.0079,142.98,142.93,6.29662259]
[1724206991069,16.0079,142.98,142.94,6.29662259]
[1724206991275,16.0079,142.98,142.92,10.3347573]
[1724206991484,16.0079,142.98,142.93,6.297043]
[1724206991775,16.0079,142.98,142.94,6.297043]
[1724206991951,16.0079,142.98,142.92,10.3347573]
[1724206992151,16.0079,142.98,142.93,6.29677952]
[1724206992456,16.0079,142.98,142.94,6.29677952]
[1724206992664,16.0079,142.98,142.92,10.3347573]
[1724206992894,16.0079,142.98,142.93,6.29655503]
[1724206993149,16.0079,142.98,142.94,6.29562998]
[1724206993349,16.0079,142.98,142.92,10.33506243]
[1724206993583,16.0079,142.98,142.91,45.0]
[1724206993784,16.0079,142.98,142.92,16.62669169]
[1724206993955,16.0079,142.98,142.93,6.29411552]
[1724206994156,16.0079,142.98,142.94,6.29411552]
[1724206994480,16.0079,142.98,142.92,10.33257617]
[1724206994771,16.0079,142.98,142.93,6.29286979]
[1724206994979,16.0079,142.98,142.94,6.29273192]
[1724206995182,16.0079,142.98,142.92,10.3303048]
[1724206995355,16.0079,142.98,142.93,6.29118473]
[1724206995555,16.0079,142.98,142.94,6.29118473]
[1724206995874,16.0079,142.98,142.91,45.0]
[1724206997484,16.0079,142.98,142.92,16.61882845]
[1724206998682,16.0079,142.98,142.91,45.0]
[1724206998858,16.0079,142.98,142.93,6.29058792]
[1724207000683,16.0079,142.98,142.94,6.29249445]
[1724207000857,16.0079,142.98,142.92,10.32991487]
[1724207001056,16.0079,142.98,142.93,6.29250327]
[1724207001259,16.0079,142.98,142.94,6.29250327]
[1724207001473,16.0079,142.98,142.91,45.0]
[1724207001678,16.0079,142.98,142.92,16.62214456]
[1724207001877,16.0079,142.98,142.93,6.29240334]
[1724207002154,16.0079,142.98,142.94,6.29240334]
[1724207002363,16.0079,142.98,142.92,10.32974122]
[1724207002567,16.0079,142.98,142.93,6.292372]
[1724207002770,16.0079,142.98,142.94,6.292372]
[1724207002963,16.0079,142.98,142.92,10.32974122]
[1724207003173,16.0079,142.98,142.93,6.29198745]
[1724207003355,16.0079,142.98,142.94,6.29198745]
[1724207003556,16.0079,142.98,142.91,45.0]
[1724207003759,16.0079,142.98,142.92,16.62106239]
[1724207003980,16.0079,142.98,142.93,6.29198453]